fUST/lending_fUST_20240727
["ID","MTS","AMOUNT","RATE_DAILY","PERIOD"]
[333363682,1722071444882,-718.57,0.00013698,2]
[333363684,1722071444892,-718.57,0.00013698,2]
[333363686,1722071444901,-500.0,0.00013698,2]
[333363688,1722071444911,-718.57,0.00013698,2]
[333363690,1722071444922,-718.57,0.00013698,2]
[333363692,1722071444933,-551.18,0.00013698,2]
[333363694,1722071444944,-718.57,0.00013698,2]
[333363696,1722071444955,-718.57,0.00013698,2]
[333363698,1722071444966,-500.0,0.00013698,2]
[333363701,1722071444976,-195.90726971,0.00013698,2]
[333363703,1722071444985,-500.0,0.00013698,2]
[333363704,1722071444995,-500.0,0.00013698,2]
[333363706,1722071445004,-288.96723443,0.00013698,2]
[333363708,1722071445013,-252.5749336,0.00013698,2]
[333363711,1722071445022,-500.0,0.00013698,2]
[333363713,1722071445031,-500.0,0.00013698,2]
[333363714,1722071445041,-500.0,0.00013698,2]
[333363716,1722071445050,-500.0,0.00013698,2]
[333363719,1722071445059,-718.75477637,0.00013698,2]
[333363721,1722071445070,-500.0,0.00013698,2]
[333363723,1722071445080,-500.0,0.00013698,2]
[333363725,1722071445089,-500.0,0.00013698,2]
[333363727,1722071445098,-500.0,0.00013698,2]
[333363729,1722071445109,-500.0,0.00013698,2]
[333363731,1722071445121,-553.6459299,0.00013698,2]
[333363733,1722071445133,-500.0,0.00013698,2]
[333363735,1722071445144,-500.0,0.00013698,2]
[333363737,1722071445155,-392.24800555,0.00013698,2]
[333363739,1722071445168,-500.0,0.00013698,2]
[333363741,1722071445178,-500.0,0.00013698,2]
[333363743,1722071445187,-500.0,0.00013698,2]
[333363745,1722071445197,-205.45958972,0.00013698,2]
[333363747,1722071445208,-503.58566811,0.00013698,2]
[333363749,1722071445217,-500.0,0.00013698,2]
[333363751,1722071445226,-500.0,0.00013698,2]
[333363753,1722071445237,-500.0,0.00013698,2]
[333363755,1722071445246,-500.0,0.00013698,2]
[333363757,1722071445255,-500.0,0.00013698,2]
[333363759,1722071445264,-718.24,0.00013698,2]
[333363761,1722071445273,-218.54517085,0.00013698,2]
[333363763,1722071445284,-151.0,0.00013698,2]
[333363765,1722071445293,-151.0,0.00013698,2]
[333363767,1722071445302,-3000.0,0.00013699,2]
[333363769,1722071445311,-151.0,0.00013699,2]
[333363771,1722071445323,-151.0,0.00013699,2]
[333363773,1722071445332,-151.0,0.00013699,2]
[333363775,1722071445342,-186.999493,0.00013699,2]
[333363777,1722071445353,-355.0,0.00013699,2]
[333363779,1722071445362,-1535.921089,0.00013699,2]
[333363781,1722071445371,-150.112233,0.000137,2]
[333363783,1722071445380,-150.112233,0.000137,2]
[333363785,1722071445390,-150.112233,0.000137,2]
[333363787,1722071445400,-151.0,0.00013709,2]
[333363790,1722071445409,-151.0,0.00013709,2]
[333363791,1722071445419,-151.0,0.00013709,2]
[333363794,1722071445429,-375.918608,0.00013709,2]
[333363796,1722071445438,-375.918608,0.00013709,2]
[333363797,1722071445448,-348.695225,0.00013709,2]
[333363799,1722071445457,-151.0,0.00013709,2]
[333363802,1722071445468,-151.0,0.00013709,2]
[333363804,1722071445477,-348.695225,0.00013709,2]
[333363806,1722071445487,-151.0,0.00013709,2]
[333363808,1722071445496,-151.0,0.00013709,2]
[333363810,1722071445505,-151.0,0.00013719,2]
[333363811,1722071445514,-1409.0,0.00013743,2]
[333363813,1722071445523,-150.112233,0.000138,2]
[333363815,1722071445532,-150.112233,0.000138,2]
[333363817,1722071445541,-150.112233,0.000138,2]
[333363819,1722071445551,-151.0,0.000138,2]
[333363821,1722071445560,-151.0,0.000138,2]
[333363823,1722071445571,-151.0,0.000138,2]
[333363826,1722071445581,-151.355207,0.000138,2]
[333363828,1722071445591,-151.0,0.000138,2]
[333363830,1722071445601,-151.0,0.000138,2]
[333363832,1722071445611,-151.0,0.000138,2]
[333363834,1722071445620,-37278.66578935,0.000138,2]
[333363836,1722071445630,-151.0,0.000138,2]
[333363838,1722071445640,-157.412293,0.000138,2]
[333363840,1722071445649,-157.412293,0.000138,2]
[333363842,1722071445658,-151.0,0.000138,2]
[333363844,1722071445668,-199.563824,0.000138,2]
[333363846,1722071445677,-199.563824,0.000138,2]
[333363848,1722071445686,-282.181974,0.000138,2]
[333363850,1722071445695,-282.181974,0.000138,2]
[333363852,1722071445706,-309.071234,0.000138,2]
[333363854,1722071445715,-309.071234,0.000138,2]
[333363856,1722071445724,-151.0,0.000138,2]
[333363858,1722071445733,-151.0,0.00013871,2]
[333363860,1722071445743,-200.0,0.00013872,2]
[333363862,1722071445753,-150.112233,0.000139,2]
[333363864,1722071445762,-150.112233,0.000139,2]
[333363866,1722071445773,-151.0,0.000139,2]
[333363868,1722071445782,-151.0,0.000139,2]
[333363870,1722071445792,-151.0,0.000139,2]
[333363872,1722071445801,-151.0,0.000139,2]
[333363874,1722071445810,-151.0,0.000139,2]
[333363876,1722071445823,-150.0,0.000139,30]
[333363878,1722071445833,-603.0,0.000139,2]
[333363880,1722071445843,-151.0,0.00013952,2]
[333363882,1722071445853,-151.0,0.00013952,2]
[333363884,1722071445863,-153.484741,0.00013952,2]
[333363887,1722071445873,-151.0,0.00013962,2]
[333363889,1722071445883,-151.0,0.00013962,2]
[333363891,1722071445892,-151.0,0.00013962,2]
[333363893,1722071445902,-151.0,0.00013962,2]
[333363895,1722071445911,-295.46436202,0.00013962,2]
[333363897,1722071445921,-151.0,0.00013962,2]
[333363898,1722071445930,-151.0,0.00013962,2]
[333363900,1722071445939,-238.666415,0.00013962,2]
[333363902,1722071445948,-238.666415,0.00013962,2]
[333363904,1722071445957,-500.0,0.0001397,2]
[333363907,1722071445967,-500.0,0.00013972,2]
[333363910,1722071445976,-500.0,0.00013972,2]
[333363913,1722071445985,-191.21382709,0.00013972,2]
[333363916,1722071445994,-500.0,0.00013972,2]
[333363919,1722071446004,-500.0,0.00013972,2]
[333363922,1722071446013,-500.0,0.00013972,2]
[333363925,1722071446023,-500.0,0.00013972,2]
[333363928,1722071446032,-500.0,0.00013972,2]
[333363930,1722071446042,-505.86005277,0.00013972,2]
[333363932,1722071446051,-500.0,0.00013972,2]
[333363934,1722071446060,-500.0,0.00013972,2]
[333363936,1722071446072,-866.62,0.00013972,2]
[333363939,1722071446081,-500.0,0.00013972,2]
[333363941,1722071446091,-151.0,0.00013972,2]
[333363943,1722071446100,-500.0,0.00013972,2]
[333363945,1722071446110,-500.0,0.00013972,2]
[333363947,1722071446121,-500.0,0.00013972,2]
[333363949,1722071446131,-500.0,0.00013972,2]
[333363951,1722071446142,-253.62290077,0.00013972,2]
[333363953,1722071446152,-500.0,0.00013972,2]
[333363955,1722071446166,-500.0,0.00013972,2]
[333363957,1722071446175,-500.0,0.00013972,2]
[333363959,1722071446185,-507.18089142,0.00013972,2]
[333363961,1722071446195,-762.54,0.00013972,2]
[333363963,1722071446205,-500.0,0.00013972,2]
[333363965,1722071446214,-500.0,0.00013972,2]
[333363967,1722071446223,-502.89702242,0.00013972,2]
[333363969,1722071446233,-504.23831053,0.00013972,2]
[333363971,1722071446245,-500.0,0.00013972,2]
[333363973,1722071446255,-1277.69,0.00013972,2]
[333363975,1722071446265,-345.75199749,0.00013972,2]
[333363977,1722071446274,-505.72425397,0.00013972,2]
[333363979,1722071446283,-500.0,0.00013972,2]
[333363981,1722071446292,-500.0,0.00013972,2]
[333363983,1722071446302,-500.0,0.00013972,2]
[333363985,1722071446311,-500.0,0.00013972,2]
[333363987,1722071446323,-500.0,0.00013972,2]
[333363989,1722071446334,-500.0,0.00013972,2]
[333363992,1722071446344,-500.0,0.00013972,2]
[333363994,1722071446354,-500.0,0.00013972,2]
[333363996,1722071446364,-500.0,0.00013972,2]
[333363998,1722071446373,-514.16073634,0.00013972,2]
[333364000,1722071446383,-151.0,0.00013972,2]
[333364001,1722071446392,-500.0,0.00013972,2]
[333364003,1722071446401,-500.0,0.00013972,2]
[333364005,1722071446412,-500.0,0.00013972,2]
[333364007,1722071446421,-500.0,0.00013972,2]
[333364009,1722071446430,-500.0,0.00013972,2]
[333364011,1722071446440,-500.0,0.00013972,2]
[333364013,1722071446449,-155.2,0.00013972,2]
[333364015,1722071446458,-500.0,0.00013972,2]
[333364017,1722071446468,-151.0,0.00013972,2]
[333364019,1722071446478,-746.02,0.00013972,2]
[333364021,1722071446487,-823.3,0.00013972,2]
[333364024,1722071446497,-151.0,0.00013972,2]
[333364026,1722071446507,-500.0,0.00013972,2]
[333364028,1722071446516,-500.0,0.00013972,2]
[333364030,1722071446525,-500.0,0.00013972,2]
[333364031,1722071446535,-500.0,0.00013972,2]
[333364033,1722071446544,-151.0,0.00013972,2]
[333364035,1722071446554,-500.0,0.00013972,2]
[333364038,1722071446568,-500.0,0.00013972,2]
[333364039,1722071446577,-339.79326684,0.00013972,2]
[333364041,1722071446586,-500.0,0.00013972,2]
[333364043,1722071446595,-500.0,0.00013972,2]
[333364045,1722071446604,-500.0,0.00013972,2]
[333364047,1722071446622,-500.0,0.00013972,2]
[333364049,1722071446631,-500.0,0.00013972,2]
[333364051,1722071446640,-500.0,0.00013972,2]
[333364053,1722071446650,-500.0,0.00013972,2]
[333364056,1722071446660,-996.13,0.00013972,2]
[333364059,1722071446669,-500.0,0.00013972,2]
[333364062,1722071446679,-504.73854438,0.00013972,2]
[333364065,1722071446688,-500.0,0.00013972,2]
[333364068,1722071446698,-903.18,0.00013972,2]
[333364071,1722071446707,-500.0,0.00013972,2]
[333364074,1722071446718,-278.4730625,0.00013972,2]
[333364077,1722071446728,-500.0,0.00013972,2]
[333364080,1722071446737,-1139.22,0.00013972,2]
[333364083,1722071446746,-151.0,0.00013972,2]
[333364086,1722071446756,-500.0,0.00013972,2]
[333364089,1722071446765,-500.0,0.00013972,2]
[333364092,1722071446774,-1397.19,0.00013972,2]
[333364094,1722071446785,-500.0,0.00013972,2]
[333364096,1722071446794,-987.44,0.00013972,2]
[333364098,1722071446803,-500.0,0.00013972,2]
[333364100,1722071446813,-500.0,0.00013972,2]
[333364102,1722071446822,-500.0,0.00013972,2]
[333364104,1722071446831,-500.0,0.00013972,2]
[333364106,1722071446841,-500.0,0.00013972,2]
[333364108,1722071446851,-500.0,0.00013972,2]
[333364110,1722071446860,-680.27,0.00013972,2]
[333364112,1722071446870,-521.08,0.00013972,2]
[333364114,1722071446879,-500.0,0.00013972,2]
[333364116,1722071446888,-500.0,0.00013972,2]
[333364118,1722071446898,-500.0,0.00013972,2]
[333364120,1722071446907,-500.0,0.00013972,2]
[333364122,1722071446916,-675.8,0.00013972,2]
[333364124,1722071446926,-500.0,0.00013972,2]
[333364126,1722071446936,-500.0,0.00013972,2]
[333364127,1722071446945,-508.57805667,0.00013972,2]
[333364129,1722071446955,-500.0,0.00013972,2]
[333364131,1722071446965,-500.0,0.00013972,2]
[333364133,1722071446975,-500.0,0.00013972,2]
[333364135,1722071446985,-500.0,0.00013972,2]
[333364137,1722071446994,-500.0,0.00013972,2]
[333364139,1722071447004,-375.00139092,0.00013972,2]
[333364141,1722071447013,-588.71,0.00013972,2]
[333364143,1722071447023,-500.0,0.00013972,2]
[333364145,1722071447033,-500.0,0.00013972,2]
[333364147,1722071447042,-500.0,0.00013972,2]
[333364149,1722071447052,-282.09750877,0.00013972,2]
[333364151,1722071447063,-500.0,0.00013972,2]
[333364153,1722071447073,-585.45535077,0.00013972,2]
[333364155,1722071447082,-500.0,0.00013972,2]
[333364157,1722071447092,-535.66,0.00013972,2]
[333364159,1722071447101,-1892.18,0.00013972,2]
[333364161,1722071447111,-500.0,0.00013972,2]
[333364163,1722071447121,-1452.55,0.00013972,2]
[333364165,1722071447130,-151.0,0.00013972,2]
[333364167,1722071447140,-157.412293,0.00013972,2]
[333364169,1722071447149,-500.0,0.00013972,2]
[333364171,1722071447158,-500.0,0.00013972,2]
[333364173,1722071447168,-1070.04,0.00013972,2]
[333364187,1722071447298,-151.0,0.00013972,2]
[333364189,1722071447310,-157.412293,0.00013972,2]
[333364191,1722071447325,-2218.23,0.00013972,2]
[333364194,1722071447336,-1236.96,0.00013972,2]
[333364196,1722071447347,-500.0,0.00013972,2]
[333364198,1722071447357,-199.563824,0.00013972,2]
[333364200,1722071447366,-500.0,0.00013972,2]
[333364201,1722071447375,-199.563824,0.00013972,2]
[333364203,1722071447384,-1048.1,0.00013972,2]
[333364205,1722071447393,-570.15,0.00013972,2]
[333364207,1722071447402,-500.0,0.00013972,2]
[333364209,1722071447411,-1846.41,0.00013972,2]
[333364211,1722071447419,-500.0,0.00013972,2]
[333364213,1722071447428,-263.78998449,0.00013972,2]
[333364215,1722071447437,-151.0,0.00013972,2]
[333364218,1722071447449,-500.0,0.00013972,2]
[333364220,1722071447459,-151.0,0.00013972,2]
[333364222,1722071447468,-500.0,0.00013972,2]
[333364224,1722071447477,-500.0,0.00013972,2]
[333364226,1722071447487,-4947.16,0.00013972,2]
[333364228,1722071447496,-8415.5,0.00013972,2]
[333364230,1722071447505,-500.0,0.00013972,2]
[333364232,1722071447514,-500.0,0.00013972,2]
[333364234,1722071447523,-500.0,0.00013972,2]
[333364236,1722071447533,-513.53,0.00013972,2]
[333364237,1722071447541,-500.0,0.00013972,2]
[333364239,1722071447550,-500.0,0.00013972,2]
[333364242,1722071447560,-461.99888554,0.00013972,2]
[333364244,1722071447572,-500.0,0.00013972,2]
[333364246,1722071447581,-500.0,0.00013972,2]
[333364248,1722071447590,-3538.98,0.00013972,2]
[333364250,1722071447601,-346.17201248,0.00013972,2]
[333364252,1722071447612,-500.0,0.00013972,2]
[333364254,1722071447622,-160.8196939,0.00013972,2]
[333364256,1722071447634,-1178.93,0.00013972,2]
[333364258,1722071447644,-711.33,0.00013972,2]
[333364261,1722071447657,-500.0,0.00013972,2]
[333364263,1722071447666,-500.0,0.00013972,2]
[333364264,1722071447675,-1592.69,0.00013972,2]
[333364265,1722071447684,-500.0,0.00013972,2]
[333364266,1722071447694,-2442.33,0.00013972,2]
[333364267,1722071447703,-875.19,0.00013972,2]
[333364268,1722071447712,-375.918608,0.00013972,2]
[333364269,1722071447721,-500.0,0.00013972,2]
[333364270,1722071447730,-500.0,0.00013972,2]
[333364271,1722071447740,-500.0,0.00013972,2]
[333364272,1722071447749,-375.918608,0.00013972,2]
[333364273,1722071447758,-500.0,0.00013972,2]
[333364274,1722071447768,-500.0,0.00013972,2]
[333364275,1722071447777,-500.0,0.00013972,2]
[333364276,1722071447787,-507.41550264,0.00013972,2]
[333364277,1722071447796,-500.0,0.00013972,2]
[333364278,1722071447805,-500.0,0.00013972,2]
[333364279,1722071447817,-500.0,0.00013972,2]
[333364280,1722071447827,-500.0,0.00013972,2]
[333364282,1722071447839,-348.695225,0.00013972,2]
[333364284,1722071447851,-151.0,0.00013972,2]
[333364286,1722071447864,-500.0,0.00013972,2]
[333364288,1722071447873,-286.950984,0.00013972,2]
[333364290,1722071447883,-500.0,0.00013972,2]
[333364292,1722071447892,-348.695225,0.00013972,2]
[333364294,1722071447902,-797.41,0.00013972,2]
[333364296,1722071447911,-500.0,0.00013972,2]
[333364298,1722071447921,-549.17,0.00013972,2]
[333364300,1722071447931,-500.0,0.00013972,2]
[333364302,1722071447940,-500.0,0.00013972,2]
[333364304,1722071447949,-1253.61,0.00013972,2]
[333364306,1722071447959,-151.0,0.00013972,2]
[333364308,1722071447968,-726.03,0.00013972,2]
[333364310,1722071447978,-151.0,0.00013972,2]
[333364312,1722071447987,-688.65,0.00013972,2]
[333364314,1722071447996,-282.181974,0.00013972,2]
[333364316,1722071448006,-500.0,0.00013972,2]
[333364318,1722071448015,-282.181974,0.00013972,2]
[333364320,1722071448025,-500.0,0.00013972,2]
[333364322,1722071448034,-1677.61,0.00013972,2]
[333364324,1722071448043,-500.0,0.00013972,2]
[333364326,1722071448053,-500.0,0.00013972,2]
[333364328,1722071448062,-725.81,0.00013972,2]
[333364330,1722071448072,-500.0,0.00013972,2]
[333364332,1722071448082,-868.94,0.00013972,2]
[333364334,1722071448091,-500.0,0.00013972,2]
[333364336,1722071448101,-500.0,0.00013972,2]
[333364338,1722071448111,-1929.96,0.00013972,2]
[333364340,1722071448120,-500.0,0.00013972,2]
[333364342,1722071448130,-500.0,0.00013972,2]
[333364344,1722071448139,-1092.21,0.00013972,2]
[333364346,1722071448149,-500.0,0.00013972,2]
[333364348,1722071448159,-500.0,0.00013972,2]
[333364350,1722071448169,-2375.04,0.00013972,2]
[333364352,1722071448182,-5915.26,0.00013972,2]
[333364354,1722071448192,-1381.22,0.00013972,2]
[333364356,1722071448202,-500.0,0.00013972,2]
[333364358,1722071448212,-500.0,0.00013972,2]
[333364360,1722071448221,-3338.17,0.00013972,2]
[333364362,1722071448231,-500.0,0.00013972,2]
[333364364,1722071448241,-756.39,0.00013972,2]
[333364366,1722071448251,-559.34253749,0.00013972,2]
[333364368,1722071448262,-500.0,0.00013972,2]
[333364371,1722071448272,-811.36,0.00013972,2]
[333364373,1722071448282,-151.0,0.00013972,2]
[333364375,1722071448292,-993.2,0.00013972,2]
[333364377,1722071448303,-500.0,0.00013972,2]
[333364379,1722071448313,-500.0,0.00013972,2]
[333364381,1722071448324,-500.0,0.00013972,2]
[333364383,1722071448334,-1117.42,0.00013972,2]
[333364385,1722071448345,-500.0,0.00013972,2]
[333364387,1722071448355,-500.0,0.00013972,2]
[333364389,1722071448364,-500.0,0.00013972,2]
[333364390,1722071448374,-500.0,0.00013972,2]
[333364392,1722071448384,-352.47487786,0.00013972,2]
[333364394,1722071448394,-1196.6,0.00013972,2]
[333364396,1722071448405,-500.0,0.00013972,2]
[333364398,1722071448415,-500.0,0.00013972,2]
[333364400,1722071448427,-309.071234,0.00013972,2]
[333364403,1722071448438,-526.98226081,0.00013972,2]
[333364405,1722071448447,-500.0,0.00013972,2]
[333364407,1722071448457,-500.0,0.00013972,2]
[333364409,1722071448467,-980.37,0.00013972,2]
[333364411,1722071448477,-309.071234,0.00013972,2]
[333364413,1722071448487,-500.0,0.00013972,2]
[333364415,1722071448496,-2024.92,0.00013972,2]
[333364416,1722071448506,-500.0,0.00013972,2]
[333364418,1722071448515,-555.68,0.00013972,2]
[333364420,1722071448525,-500.0,0.00013972,2]
[333364422,1722071448535,-500.0,0.00013972,2]
[333364424,1722071448544,-1252.67,0.00013972,2]
[333364426,1722071448553,-500.0,0.00013972,2]
[333364428,1722071448562,-238.666415,0.00013972,2]
[333364430,1722071448573,-1538.63,0.00013972,2]
[333364432,1722071448582,-500.0,0.00013972,2]
[333364434,1722071448591,-2075.92,0.00013972,2]
[333364436,1722071448601,-238.666415,0.00013972,2]
[333364438,1722071448611,-500.0,0.00013972,2]
[333364440,1722071448621,-500.0,0.00013972,2]
[333364442,1722071448631,-500.0,0.00013972,2]
[333364444,1722071448640,-670.68,0.00013972,2]
[333364446,1722071448650,-826.55,0.00013972,2]
[333364448,1722071448659,-727.73,0.00013972,2]
[333364450,1722071448668,-500.0,0.00013972,2]
[333364452,1722071448678,-2488.5,0.00013972,2]
[333364454,1722071448688,-500.0,0.00013972,2]
[333364456,1722071448698,-500.0,0.00013972,2]
[333364458,1722071448707,-500.0,0.00013972,2]
[333364460,1722071448718,-500.0,0.00013972,2]
[333364461,1722071448727,-500.0,0.00013972,2]
[333364462,1722071448737,-1149.69,0.00013972,2]
[333364463,1722071448746,-151.0,0.00013972,2]
[333364464,1722071448756,-3095.49,0.00013972,2]
[333364465,1722071448765,-500.0,0.00013972,2]
[333364466,1722071448774,-718.24,0.00013972,2]
[333364467,1722071448784,-153.0,0.00013973,2]
[333364468,1722071448794,-150.112233,0.00014,2]
[333364469,1722071448803,-150.112233,0.00014,2]
[333364470,1722071448815,-150.112233,0.00014,2]
[333364471,1722071448825,-3202.261,0.00014013,2]
[333364472,1722071448834,-300.258,0.00014016,2]
[333364473,1722071448844,-156.0,0.0001402,2]
[333364474,1722071448854,-150.112233,0.000141,2]
[333364475,1722071448864,-150.112233,0.000141,2]
[333364476,1722071448874,-253.246605,0.00014103,2]
[333364477,1722071448884,-150.112233,0.000142,2]
[333364478,1722071448894,-150.112233,0.000142,2]
[333364479,1722071448904,-300.0,0.000142,5]
[333364480,1722071448913,-151.0,0.00014226,2]
[333364481,1722071448924,-194.45654901,0.00014246,2]
[333364482,1722071448935,-500.0,0.00014246,2]
[333364483,1722071448944,-504.77150617,0.00014246,2]
[333364484,1722071448954,-500.0,0.00014246,2]
[333364485,1722071448963,-500.0,0.00014246,2]
[333364486,1722071448973,-500.0,0.00014246,2]
[333364487,1722071448982,-500.0,0.00014246,2]
[333364488,1722071448992,-500.0,0.00014246,2]
[333364489,1722071449002,-866.62,0.00014246,2]
[333364490,1722071449013,-505.32615552,0.00014246,2]
[333364491,1722071449024,-151.0,0.00014246,2]
[333364492,1722071449033,-500.0,0.00014246,2]
[333364493,1722071449043,-500.0,0.00014246,2]
[333364494,1722071449053,-500.0,0.00014246,2]
[333364495,1722071449063,-500.0,0.00014246,2]
[333364496,1722071449073,-762.54,0.00014246,2]
[333364497,1722071449083,-500.0,0.00014246,2]
[333364498,1722071449093,-500.0,0.00014246,2]
[333364499,1722071449102,-1277.69,0.00014246,2]
[333364500,1722071449112,-508.76286767,0.00014246,2]
[333364501,1722071449121,-500.0,0.00014246,2]
[333364502,1722071449132,-500.0,0.00014246,2]
[333364503,1722071449143,-500.0,0.00014246,2]
[333364504,1722071449152,-272.79,0.00014246,2]
[333364505,1722071449162,-550.49293423,0.00014246,2]
[333364506,1722071449173,-151.0,0.00014246,2]
[333364507,1722071449185,-507.00078858,0.00014246,2]
[333364508,1722071449195,-500.0,0.00014246,2]
[333364509,1722071449205,-500.0,0.00014246,2]
[333364510,1722071449215,-151.0,0.00014246,2]
[333364511,1722071449226,-746.02,0.00014246,2]
[333364512,1722071449236,-823.3,0.00014246,2]
[333364513,1722071449246,-151.0,0.00014246,2]
[333364514,1722071449257,-500.0,0.00014246,2]
[333364515,1722071449269,-500.0,0.00014246,2]
[333364516,1722071449279,-237.08,0.00014246,2]
[333364517,1722071449289,-500.0,0.00014246,2]
[333364518,1722071449298,-535.96891903,0.00014246,2]
[333364519,1722071449309,-500.0,0.00014246,2]
[333364520,1722071449319,-996.13,0.00014246,2]
[333364521,1722071449330,-500.0,0.00014246,2]
[333364522,1722071449340,-500.0,0.00014246,2]
[333364523,1722071449351,-903.18,0.00014246,2]
[333364524,1722071449361,-500.0,0.00014246,2]
[333364525,1722071449371,-500.0,0.00014246,2]
[333364526,1722071449382,-1139.22,0.00014246,2]
[333364527,1722071449392,-1397.19,0.00014246,2]
[333364528,1722071449402,-500.0,0.00014246,2]
[333364529,1722071449412,-987.44,0.00014246,2]
[333364530,1722071449422,-500.0,0.00014246,2]
[333364531,1722071449432,-500.0,0.00014246,2]
[333364532,1722071449442,-508.21497187,0.00014246,2]
[333364533,1722071449451,-500.0,0.00014246,2]
[333364534,1722071449462,-500.0,0.00014246,2]
[333364535,1722071449472,-506.36627106,0.00014246,2]
[333364536,1722071449482,-680.27,0.00014246,2]
[333364537,1722071449492,-521.08,0.00014246,2]
[333364538,1722071449502,-500.0,0.00014246,2]
[333364539,1722071449513,-500.0,0.00014246,2]
[333364540,1722071449523,-675.8,0.00014246,2]
[333364541,1722071449533,-500.0,0.00014246,2]
[333364542,1722071449543,-588.71,0.00014246,2]
[333364543,1722071449553,-500.0,0.00014246,2]
[333364544,1722071449563,-241.05007576,0.00014246,2]
[333364545,1722071449574,-506.87116694,0.00014246,2]
[333364546,1722071449584,-535.66,0.00014246,2]
[333364547,1722071449595,-1892.18,0.00014246,2]
[333364548,1722071449606,-500.0,0.00014246,2]
[333364549,1722071449616,-1452.55,0.00014246,2]
[333364550,1722071449627,-151.0,0.00014246,2]
[333364552,1722071449637,-157.412293,0.00014246,2]
[333364554,1722071449647,-500.0,0.00014246,2]
[333364556,1722071449658,-500.0,0.00014246,2]
[333364558,1722071449668,-1070.04,0.00014246,2]
[333364559,1722071449678,-157.412293,0.00014246,2]
[333364561,1722071449688,-151.0,0.00014246,2]
[333364563,1722071449698,-2218.23,0.00014246,2]
[333364565,1722071449709,-1236.96,0.00014246,2]
[333364567,1722071449719,-500.0,0.00014246,2]
[333364569,1722071449729,-199.563824,0.00014246,2]
[333364571,1722071449739,-199.563824,0.00014246,2]
[333364573,1722071449749,-570.15,0.00014246,2]
[333364575,1722071449759,-1048.1,0.00014246,2]
[333364577,1722071449770,-500.0,0.00014246,2]
[333364579,1722071449780,-1846.41,0.00014246,2]
[333364580,1722071449790,-500.0,0.00014246,2]
[333364583,1722071449801,-151.0,0.00014246,2]
[333364585,1722071449813,-151.0,0.00014246,2]
[333364586,1722071449825,-500.0,0.00014246,2]
[333364588,1722071449836,-4947.16,0.00014246,2]
[333364590,1722071449847,-8415.5,0.00014246,2]
[333364592,1722071449857,-500.0,0.00014246,2]
[333364594,1722071449868,-513.53,0.00014246,2]
[333364596,1722071449879,-500.0,0.00014246,2]
[333364598,1722071449889,-3538.98,0.00014246,2]
[333364600,1722071449899,-500.0,0.00014246,2]
[333364602,1722071449909,-1178.93,0.00014246,2]
[333364604,1722071449920,-711.33,0.00014246,2]
[333364606,1722071449930,-1592.69,0.00014246,2]
[333364608,1722071449940,-875.19,0.00014246,2]